[Event "Late-Titled-Tuesday-Blitz-October-24-2023"]
[Site "Chess.com"]
[Date "2023.10.24"]
[Round "3"]
[White "DefiantChair"]
[Black "Grischuk"]
[Result "0-1"]
[WhiteElo "2681"]
[BlackElo "2989"]
[TimeControl "180+1"]
[EndTime "14:27:23 PDT"]
[Termination "Grischuk won by checkmate"]

1. e4 {[%clk 0:03:00.9]} 1... e5 {[%clk 0:02:59.8]} 2. Nf3 {[%clk 0:03:01.1]}
2... Nc6 {[%clk 0:03:00.3]} 3. Bb5 {[%clk 0:03:01.8]} 3... a6 {[%clk 0:02:59.2]}
4. Ba4 {[%clk 0:03:02]} 4... Nf6 {[%clk 0:02:59.3]} 5. O-O {[%clk 0:03:02.3]}
5... Be7 {[%clk 0:02:59.7]} 6. Re1 {[%clk 0:03:02.4]} 6... b5 {[%clk 0:02:58.9]}
7. Bb3 {[%clk 0:03:03.1]} 7... O-O {[%clk 0:02:57.7]} 8. c3 {[%clk 0:03:01.1]}
8... d6 {[%clk 0:02:55.8]} 9. h3 {[%clk 0:03:01]} 9... Nb8 {[%clk 0:02:47]} 10.
d4 {[%clk 0:03:01]} 10... Nbd7 {[%clk 0:02:47.6]} 11. Nbd2 {[%clk 0:03:00.9]}
11... Bb7 {[%clk 0:02:47.9]} 12. Bc2 {[%clk 0:03:01.4]} 12... Re8 {[%clk
0:02:47.5]} 13. Nf1 {[%clk 0:03:01.9]} 13... Bf8 {[%clk 0:02:48.1]} 14. Ng3
{[%clk 0:03:02.6]} 14... g6 {[%clk 0:02:47.4]} 15. Bg5 {[%clk 0:03:02.6]} 15...
h6 {[%clk 0:02:47.2]} 16. Bd2 {[%clk 0:03:02.7]} 16... Bg7 {[%clk 0:02:41.2]}
17. Qc1 {[%clk 0:03:02.9]} 17... Kh7 {[%clk 0:02:40.8]} 18. b3 {[%clk
0:03:01.8]} 18... Rc8 {[%clk 0:02:28]} 19. a4 {[%clk 0:02:58.8]} 19... exd4
{[%clk 0:02:24.9]} 20. cxd4 {[%clk 0:02:58.4]} 20... c5 {[%clk 0:02:25.5]} 21.
d5 {[%clk 0:02:56.6]} 21... c4 {[%clk 0:02:23.6]} 22. b4 {[%clk 0:02:50.4]}
22... c3 {[%clk 0:02:18.7]} 23. Be3 {[%clk 0:02:46.4]} 23... Rc4 {[%clk
0:02:17.5]} 24. Rb1 {[%clk 0:02:40.5]} 24... Nxe4 {[%clk 0:02:05.9]} 25. Nxe4
{[%clk 0:02:37.9]} 25... Rcxe4 {[%clk 0:02:06.8]} 26. Bxe4 {[%clk 0:02:38.2]}
26... Rxe4 {[%clk 0:02:07.7]} 27. Qc2 {[%clk 0:02:34.3]} 27... Bxd5 {[%clk
0:02:01.7]} 28. axb5 {[%clk 0:02:32.6]} 28... axb5 {[%clk 0:02:01.6]} 29. Red1
{[%clk 0:02:20.5]} 29... Rxe3 {[%clk 0:01:51.7]} 30. fxe3 {[%clk 0:02:18.8]}
30... Bxf3 {[%clk 0:01:49.1]} 31. gxf3 {[%clk 0:02:19.5]} 31... Qg5+ {[%clk
0:01:49.1]} 32. Kf2 {[%clk 0:02:17.1]} 32... Ne5 {[%clk 0:01:32.4]} 33. Rd4
{[%clk 0:02:07.5]} 33... Qh5 {[%clk 0:01:25.7]} 34. Qxc3 {[%clk 0:01:42.1]}
34... Qxf3+ {[%clk 0:01:20.1]} 35. Kg1 {[%clk 0:01:42.6]} 35... Qe2 {[%clk
0:01:09.7]} 36. Rb2 {[%clk 0:01:35.9]} 36... Nf3+ {[%clk 0:01:07.9]} 37. Kh1
{[%clk 0:01:36.2]} 37... Qf1# {[%clk 0:01:08.1]} 0-1

[Event "Late-Titled-Tuesday-Blitz-October-24-2023"]
[Site "Chess.com"]
[Date "2023.10.24"]
[Round "3"]
[White "dretch"]
[Black "cthake"]
[Result "1-0"]
[WhiteElo "2815"]
[BlackElo "1927"]
[TimeControl "180+1"]
[EndTime "14:27:47 PDT"]
[Termination "dretch won by resignation"]

1. a4 {[%clk 0:02:59.5]} 1... d5 {[%clk 0:02:58.2]} 2. a5 {[%clk 0:02:58.8]}
2... e5 {[%clk 0:02:57.7]} 3. c3 {[%clk 0:02:58.7]} 3... Nc6 {[%clk 0:02:53.5]}
4. a6 {[%clk 0:02:56.8]} 4... Nf6 {[%clk 0:02:47.7]} 5. Qa4 {[%clk 0:02:54.4]}
5... Qd7 {[%clk 0:02:35.7]} 6. e3 {[%clk 0:02:51.4]} 6... bxa6 {[%clk
0:02:30.2]} 7. d3 {[%clk 0:02:50.9]} 7... Bd6 {[%clk 0:02:25.9]} 8. Nd2 {[%clk
0:02:49]} 8... O-O {[%clk 0:02:23.7]} 9. Ngf3 {[%clk 0:02:49.2]} 9... Bb7 {[%clk
0:02:20.3]} 10. Be2 {[%clk 0:02:48.7]} 10... a5 {[%clk 0:02:15.6]} 11. O-O
{[%clk 0:02:44.4]} 11... Rae8 {[%clk 0:02:14.5]} 12. e4 {[%clk 0:02:41.6]} 12...
dxe4 {[%clk 0:01:46]} 13. dxe4 {[%clk 0:02:35.2]} 13... Ne7 {[%clk 0:01:38.6]}
14. Re1 {[%clk 0:02:15.7]} 14... Qxa4 {[%clk 0:01:37.6]} 15. Rxa4 {[%clk
0:02:14.7]} 15... Nc6 {[%clk 0:01:34.3]} 16. Nb3 {[%clk 0:02:08.5]} 16... Nxe4
{[%clk 0:01:31.8]} 17. Rxe4 {[%clk 0:02:07.5]} 17... Nd4 {[%clk 0:01:29.5]} 18.
cxd4 {[%clk 0:01:46.4]} 18... Bxe4 {[%clk 0:01:28.2]} 19. Bb5 {[%clk 0:01:45.9]}
19... Bxf3 {[%clk 0:01:23.4]} 20. Bxe8 {[%clk 0:01:44.4]} 20... Rxe8 {[%clk
0:01:23.1]} 21. gxf3 {[%clk 0:01:43.9]} 21... f6 {[%clk 0:01:22.5]} 22. dxe5
{[%clk 0:01:36.6]} 22... fxe5 {[%clk 0:01:15.1]} 23. Re4 {[%clk 0:01:34.8]}
23... Rb8 {[%clk 0:01:12.4]} 24. Nxa5 {[%clk 0:01:34.4]} 24... Rb5 {[%clk
0:01:09.7]} 25. Nc4 {[%clk 0:01:33.5]} 25... Rc5 {[%clk 0:01:09.2]} 26. Be3
{[%clk 0:01:27.3]} 26... Rc6 {[%clk 0:01:09.3]} 27. Bxa7 {[%clk 0:01:26.7]}
27... Ra6 {[%clk 0:01:07.5]} 28. Be3 {[%clk 0:01:26.6]} 28... Ra1+ {[%clk
0:01:06.9]} 29. Kg2 {[%clk 0:01:26.9]} 29... Kf7 {[%clk 0:01:01.7]} 30. f4
{[%clk 0:01:26.1]} 30... exf4 {[%clk 0:01:01.2]} 31. Nxd6+ {[%clk 0:01:26.1]}
31... cxd6 {[%clk 0:00:59.4]} 32. Rxf4+ {[%clk 0:01:27]} 32... Ke6 {[%clk
0:00:59.3]} 33. Bd4 {[%clk 0:01:27.9]} 33... g5 {[%clk 0:00:58.7]} 34. Rf6+
{[%clk 0:01:27.2]} 34... Kd5 {[%clk 0:00:59]} 35. Bc3 {[%clk 0:01:26.9]} 35...
h5 {[%clk 0:00:57.1]} 36. Rf5+ {[%clk 0:01:25.4]} 36... Kc4 {[%clk 0:00:55.8]}
37. Rxg5 {[%clk 0:01:24.5]} 37... d5 {[%clk 0:00:56.5]} 38. Rxh5 {[%clk
0:01:24.8]} 38... d4 {[%clk 0:00:56.8]} 39. Rh4 {[%clk 0:01:25.3]} 39... Rd1
{[%clk 0:00:52.9]} 40. Rxd4+ {[%clk 0:01:24.4]} 1-0

[Event "Late-Titled-Tuesday-Blitz-October-24-2023"]
[Site "Chess.com"]
[Date "2023.10.24"]
[Round "3"]
[White "baag"]
[Black "Payyappat"]
[Result "1-0"]
[WhiteElo "2849"]
[BlackElo "2516"]
[TimeControl "180+1"]
[EndTime "14:27:51 PDT"]
[Termination "baag won by resignation"]

1. d4 {[%clk 0:03:00.9]} 1... Nf6 {[%clk 0:02:59.5]} 2. c4 {[%clk 0:03:01.5]}
2... c5 {[%clk 0:02:58]} 3. d5 {[%clk 0:03:01.7]} 3... e6 {[%clk 0:02:58.9]} 4.
Nc3 {[%clk 0:03:01.7]} 4... exd5 {[%clk 0:02:59.5]} 5. cxd5 {[%clk 0:03:02.6]}
5... d6 {[%clk 0:02:58.1]} 6. e4 {[%clk 0:03:03.1]} 6... g6 {[%clk 0:02:57.3]}
7. h3 {[%clk 0:03:03.6]} 7... Bg7 {[%clk 0:02:56.9]} 8. Nf3 {[%clk 0:03:04.3]}
8... O-O {[%clk 0:02:53.3]} 9. Bd3 {[%clk 0:03:04.7]} 9... Re8 {[%clk
0:02:53.3]} 10. O-O {[%clk 0:03:04.4]} 10... Nbd7 {[%clk 0:02:53]} 11. Bf4
{[%clk 0:03:04]} 11... Nf8 {[%clk 0:02:52.6]} 12. Re1 {[%clk 0:03:00]} 12... a6
{[%clk 0:02:51.8]} 13. a4 {[%clk 0:02:59.9]} 13... h6 {[%clk 0:02:51.3]} 14. Bh2
{[%clk 0:02:54.1]} 14... g5 {[%clk 0:02:49.5]} 15. e5 {[%clk 0:02:49.9]} 15...
dxe5 {[%clk 0:02:47.7]} 16. Nxe5 {[%clk 0:02:50.8]} 16... N8d7 {[%clk
0:02:38.1]} 17. Qf3 {[%clk 0:02:08.9]} 17... Nb6 {[%clk 0:02:20.4]} 18. Rad1
{[%clk 0:01:54.2]} 18... Bd7 {[%clk 0:01:47.6]} 19. a5 {[%clk 0:01:51.2]} 19...
Nc8 {[%clk 0:01:47]} 20. Nxd7 {[%clk 0:01:20.9]} 20... Qxd7 {[%clk 0:01:47.9]}
21. Be5 {[%clk 0:01:13.4]} 21... g4 {[%clk 0:00:42.4]} 22. hxg4 {[%clk
0:01:09.3]} 22... Qxg4 {[%clk 0:00:43.3]} 23. Bxf6 {[%clk 0:01:07.1]} 23...
Rxe1+ {[%clk 0:00:42.1]} 24. Rxe1 {[%clk 0:01:08]} 24... Qxf3 {[%clk 0:00:42]}
25. Re8+ {[%clk 0:01:08.7]} 25... Bf8 {[%clk 0:00:41.3]} 26. gxf3 {[%clk
0:01:09.6]} 26... Nb6 {[%clk 0:00:40.7]} 27. Rxf8+ {[%clk 0:01:01.1]} 1-0

[Event "Late-Titled-Tuesday-Blitz-October-24-2023"]
[Site "Chess.com"]
[Date "2023.10.24"]
[Round "3"]
[White "Andrei_Skvortsov"]
[Black "Barmen_EV"]
[Result "1-0"]
[WhiteElo "2660"]
[BlackElo "2489"]
[TimeControl "180+1"]
[EndTime "14:27:53 PDT"]
[Termination "Andrei_Skvortsov won by resignation"]

1. e4 {[%clk 0:03:00.9]} 1... e5 {[%clk 0:02:59.6]} 2. d4 {[%clk 0:03:00.9]}
2... exd4 {[%clk 0:02:59.6]} 3. Qxd4 {[%clk 0:03:01.8]} 3... Nc6 {[%clk
0:02:59.5]} 4. Qd3 {[%clk 0:03:02.4]} 4... d6 {[%clk 0:02:59.7]} 5. Nc3 {[%clk
0:03:02.8]} 5... Nf6 {[%clk 0:02:59.6]} 6. Nf3 {[%clk 0:03:03.3]} 6... Be7
{[%clk 0:03:00]} 7. Be2 {[%clk 0:03:03.9]} 7... O-O {[%clk 0:03:00.4]} 8. O-O
{[%clk 0:03:04.5]} 8... h6 {[%clk 0:03:00.7]} 9. Nd5 {[%clk 0:03:04.9]} 9... Be6
{[%clk 0:02:59.6]} 10. c4 {[%clk 0:03:04.3]} 10... Ng4 {[%clk 0:02:51.1]} 11.
Nxe7+ {[%clk 0:03:03.9]} 11... Qxe7 {[%clk 0:02:50.4]} 12. h3 {[%clk 0:03:04.1]}
12... Nge5 {[%clk 0:02:50.1]} 13. Nxe5 {[%clk 0:03:04.6]} 13... Nxe5 {[%clk
0:02:51]} 14. Qc3 {[%clk 0:03:05.1]} 14... Nc6 {[%clk 0:02:38]} 15. b3 {[%clk
0:03:01.4]} 15... f6 {[%clk 0:02:35.4]} 16. b4 {[%clk 0:02:57.8]} 16... Bf7
{[%clk 0:02:34]} 17. f3 {[%clk 0:02:49.9]} 17... Qe5 {[%clk 0:02:18]} 18. Qxe5
{[%clk 0:02:48.5]} 18... dxe5 {[%clk 0:02:18.9]} 19. Be3 {[%clk 0:02:44.8]}
19... Rad8 {[%clk 0:02:17.9]} 20. Rad1 {[%clk 0:02:37.4]} 20... Nxb4 {[%clk
0:02:13.4]} 21. Bc5 {[%clk 0:02:34.3]} 21... Nc2 {[%clk 0:02:05.7]} 22. Bxf8
{[%clk 0:02:31.8]} 22... Rxf8 {[%clk 0:02:06.6]} 23. Rd2 {[%clk 0:02:30.5]}
23... Nd4 {[%clk 0:02:05.6]} 24. Rb1 {[%clk 0:02:29.8]} 24... b6 {[%clk
0:02:04.9]} 25. c5 {[%clk 0:02:29.2]} 25... bxc5 {[%clk 0:02:03.4]} 26. Rb7
{[%clk 0:02:26.9]} 26... Rc8 {[%clk 0:01:58.7]} 27. Kf2 {[%clk 0:02:18.9]} 27...
c4 {[%clk 0:01:56.3]} 28. Rd1 {[%clk 0:02:18.7]} 28... c3 {[%clk 0:01:33.7]} 29.
Rc1 {[%clk 0:02:13.9]} 29... c2 {[%clk 0:01:15.1]} 30. Bd3 {[%clk 0:02:02.8]}
30... a5 {[%clk 0:01:12.4]} 31. a3 {[%clk 0:01:58.6]} 31... c5 {[%clk
0:00:57.8]} 32. Bxc2 {[%clk 0:01:53.9]} 32... c4 {[%clk 0:00:57.9]} 33. Bd3
{[%clk 0:01:40.3]} 33... Nb3 {[%clk 0:00:40.8]} 34. Rxb3 {[%clk 0:01:37.7]}
34... cxb3 {[%clk 0:00:36.9]} 35. Rxc8+ {[%clk 0:01:37]} 35... Kh7 {[%clk
0:00:37.8]} 36. a4 {[%clk 0:01:35.4]} 36... b2 {[%clk 0:00:37.5]} 37. Rb8 {[%clk
0:01:34.5]} 37... Bb3 {[%clk 0:00:38.4]} 38. Rxb3 {[%clk 0:01:34.2]} 1-0

[Event "Late-Titled-Tuesday-Blitz-October-24-2023"]
[Site "Chess.com"]
[Date "2023.10.24"]
[Round "3"]
[White "Elbebiber"]
[Black "Casper"]
[Result "0-1"]
[WhiteElo "2141"]
[BlackElo "2450"]
[TimeControl "180+1"]
[EndTime "14:27:55 PDT"]
[Termination "Casper won on time"]

1. d4 {[%clk 0:03:00.9]} 1... Nf6 {[%clk 0:03:00]} 2. Bg5 {[%clk 0:03:00.2]}
2... g6 {[%clk 0:03:00.9]} 3. Bxf6 {[%clk 0:02:59.9]} 3... exf6 {[%clk
0:03:01.8]} 4. e3 {[%clk 0:02:59.9]} 4... Bg7 {[%clk 0:03:02.5]} 5. Nf3 {[%clk
0:02:56.8]} 5... O-O {[%clk 0:03:03.4]} 6. c4 {[%clk 0:02:56.7]} 6... c5 {[%clk
0:03:02.6]} 7. Nc3 {[%clk 0:02:55.8]} 7... f5 {[%clk 0:02:59.4]} 8. Be2 {[%clk
0:02:49.2]} 8... cxd4 {[%clk 0:02:58.9]} 9. Nxd4 {[%clk 0:02:41.6]} 9... Nc6
{[%clk 0:02:57.9]} 10. O-O {[%clk 0:02:32.8]} 10... f4 {[%clk 0:02:48.8]} 11.
Nxc6 {[%clk 0:02:24.5]} 11... dxc6 {[%clk 0:02:49.7]} 12. Qxd8 {[%clk
0:02:12.3]} 12... Rxd8 {[%clk 0:02:50.6]} 13. exf4 {[%clk 0:02:03.5]} 13... Rd2
{[%clk 0:02:48.2]} 14. Bf3 {[%clk 0:01:44]} 14... Rxb2 {[%clk 0:02:40.1]} 15.
Ne4 {[%clk 0:01:25.6]} 15... Be6 {[%clk 0:02:35.5]} 16. Rfc1 {[%clk 0:01:06]}
16... a5 {[%clk 0:02:10.1]} 17. a4 {[%clk 0:00:59]} 17... Rb4 {[%clk 0:02:04.8]}
18. Rab1 {[%clk 0:00:47.4]} 18... Bb2 {[%clk 0:01:59.2]} 19. Rc2 {[%clk
0:00:39.9]} 19... Bd4 {[%clk 0:01:59.5]} 20. Rd1 {[%clk 0:00:26.3]} 20... c5
{[%clk 0:01:56.5]} 21. Nd6 {[%clk 0:00:20]} 21... Rxa4 {[%clk 0:01:53.1]} 22.
Bxb7 {[%clk 0:00:17.1]} 22... Rb8 {[%clk 0:01:52.8]} 23. Bc6 {[%clk 0:00:17.4]}
23... Rab4 {[%clk 0:01:49.9]} 24. Bb5 {[%clk 0:00:17]} 24... a4 {[%clk
0:01:44.8]} 25. Kf1 {[%clk 0:00:10.8]} 25... a3 {[%clk 0:01:44.2]} 26. h3 {[%clk
0:00:08.7]} 26... a2 {[%clk 0:01:36.8]} 27. Rxa2 {[%clk 0:00:06.9]} 27... R4xb5
{[%clk 0:01:37.4]} 28. Nxb5 {[%clk 0:00:04.3]} 28... Bxc4+ {[%clk 0:01:37.5]}
0-1

[Event "Late-Titled-Tuesday-Blitz-October-24-2023"]
[Site "Chess.com"]
[Date "2023.10.24"]
[Round "3"]
[White "DanielNaroditsky"]
[Black "yosephtaher"]
[Result "1-0"]
[WhiteElo "3207"]
[BlackElo "2746"]
[TimeControl "180+1"]
[EndTime "14:27:56 PDT"]
[Termination "DanielNaroditsky won by resignation"]

1. d4 {[%clk 0:03:00.9]} 1... Nf6 {[%clk 0:02:59.5]} 2. Nc3 {[%clk 0:03:01.6]}
2... d5 {[%clk 0:02:57.8]} 3. Bf4 {[%clk 0:03:02.3]} 3... c5 {[%clk 0:02:58.1]}
4. e4 {[%clk 0:02:58.6]} 4... Nxe4 {[%clk 0:02:58.5]} 5. Nxe4 {[%clk 0:02:58.6]}
5... dxe4 {[%clk 0:02:58.9]} 6. dxc5 {[%clk 0:02:59.5]} 6... Qa5+ {[%clk
0:02:59.6]} 7. c3 {[%clk 0:03:00]} 7... Qxc5 {[%clk 0:02:59.7]} 8. Qa4+ {[%clk
0:03:00.6]} 8... Nc6 {[%clk 0:03:00.4]} 9. Qxe4 {[%clk 0:03:01.3]} 9... g6
{[%clk 0:03:01.1]} 10. Nf3 {[%clk 0:03:01.9]} 10... Bg7 {[%clk 0:02:59]} 11. Rd1
{[%clk 0:03:01.6]} 11... O-O {[%clk 0:02:54.1]} 12. Be3 {[%clk 0:03:01]} 12...
Qf5 {[%clk 0:02:48.1]} 13. Qa4 {[%clk 0:03:01.1]} 13... a6 {[%clk 0:02:40]} 14.
Bd3 {[%clk 0:03:00.3]} 14... Qg4 {[%clk 0:02:31.1]} 15. Qxg4 {[%clk 0:02:53.2]}
15... Bxg4 {[%clk 0:02:32]} 16. Be4 {[%clk 0:02:51.6]} 16... Be6 {[%clk
0:02:25.7]} 17. a3 {[%clk 0:02:40.1]} 17... Rfd8 {[%clk 0:02:24.3]} 18. O-O
{[%clk 0:02:39.8]} 18... Bb3 {[%clk 0:02:23]} 19. Rc1 {[%clk 0:02:34.3]} 19...
Bd5 {[%clk 0:02:18.7]} 20. Bxd5 {[%clk 0:02:33.7]} 20... Rxd5 {[%clk 0:02:19.6]}
21. Rfd1 {[%clk 0:02:34.5]} 21... Rad8 {[%clk 0:02:18.5]} 22. Rxd5 {[%clk
0:02:35]} 22... Rxd5 {[%clk 0:02:19.4]} 23. Kf1 {[%clk 0:02:35.9]} 23... Na5
{[%clk 0:02:12.4]} 24. Nd2 {[%clk 0:02:29.7]} 24... Rd7 {[%clk 0:02:04.4]} 25.
Ke2 {[%clk 0:02:27.1]} 25... f5 {[%clk 0:02:00.4]} 26. f3 {[%clk 0:02:19.6]}
26... Kf7 {[%clk 0:01:58.2]} 27. b4 {[%clk 0:02:11.3]} 27... Nc6 {[%clk
0:01:57.2]} 28. Nc4 {[%clk 0:02:11.1]} 28... Bf6 {[%clk 0:01:44.8]} 29. a4
{[%clk 0:02:03.5]} 29... Rc7 {[%clk 0:01:44.6]} 30. Nb6 {[%clk 0:01:49.9]} 30...
e6 {[%clk 0:01:37.4]} 31. b5 {[%clk 0:01:40]} 31... axb5 {[%clk 0:01:28.7]} 32.
axb5 {[%clk 0:01:40.9]} 32... Na5 {[%clk 0:01:28.2]} 33. c4 {[%clk 0:01:39.2]}
33... Nb3 {[%clk 0:01:25.9]} 34. Rd1 {[%clk 0:01:38.7]} 34... Ke7 {[%clk
0:01:01.4]} 35. Bf4 {[%clk 0:01:36.7]} 1-0

[Event "Late-Titled-Tuesday-Blitz-October-24-2023"]
[Site "Chess.com"]
[Date "2023.10.24"]
[Round "3"]
[White "GAO"]
[Black "weakandslowchess"]
[Result "1-0"]
[WhiteElo "2338"]
[BlackElo "2016"]
[TimeControl "180+1"]
[EndTime "14:28:07 PDT"]
[Termination "GAO won by resignation"]

1. Nf3 {[%clk 0:02:59.3]} 1... Nf6 {[%clk 0:02:59.1]} 2. d4 {[%clk 0:03:00.2]}
2... g6 {[%clk 0:02:58.6]} 3. Nbd2 {[%clk 0:02:58.5]} 3... Bg7 {[%clk
0:02:58.7]} 4. e4 {[%clk 0:02:58.7]} 4... d6 {[%clk 0:02:58.8]} 5. Bc4 {[%clk
0:02:58.3]} 5... O-O {[%clk 0:02:58.7]} 6. Qe2 {[%clk 0:02:58.4]} 6... c6 {[%clk
0:02:57.8]} 7. e5 {[%clk 0:02:58.4]} 7... dxe5 {[%clk 0:02:57.3]} 8. dxe5 {[%clk
0:02:58.3]} 8... Nd5 {[%clk 0:02:57.1]} 9. O-O {[%clk 0:02:55.7]} 9... Bg4
{[%clk 0:02:53.3]} 10. h3 {[%clk 0:02:56.1]} 10... Bxf3 {[%clk 0:02:52.3]} 11.
Nxf3 {[%clk 0:02:57]} 11... e6 {[%clk 0:02:51.4]} 12. Rd1 {[%clk 0:02:56.8]}
12... Qa5 {[%clk 0:02:51]} 13. Bd2 {[%clk 0:02:55.9]} 13... Qc7 {[%clk
0:02:49.2]} 14. Bg5 {[%clk 0:02:55.1]} 14... Nd7 {[%clk 0:02:41.7]} 15. h4
{[%clk 0:02:48.2]} 15... h6 {[%clk 0:02:40.2]} 16. Bd2 {[%clk 0:02:46.3]} 16...
Nxe5 {[%clk 0:02:30.8]} 17. Nxe5 {[%clk 0:02:45.8]} 17... Qxe5 {[%clk
0:02:30.2]} 18. Qxe5 {[%clk 0:02:45.5]} 18... Bxe5 {[%clk 0:02:30.2]} 19. Bxh6
{[%clk 0:02:46.2]} 19... Bg7 {[%clk 0:02:25.2]} 20. Bxg7 {[%clk 0:02:42.4]}
20... Kxg7 {[%clk 0:02:26.1]} 21. Bxd5 {[%clk 0:02:40.3]} 21... exd5 {[%clk
0:02:21.3]} 22. c3 {[%clk 0:02:41.2]} 22... Rfe8 {[%clk 0:02:20.6]} 23. Re1
{[%clk 0:02:30.3]} 23... Kf6 {[%clk 0:02:14]} 24. g3 {[%clk 0:02:29.5]} 24...
Kf5 {[%clk 0:02:06.4]} 25. Kg2 {[%clk 0:02:29.5]} 25... Re4 {[%clk 0:01:58.4]}
26. Kf3 {[%clk 0:02:26.4]} 26... Rae8 {[%clk 0:01:52.5]} 27. g4+ {[%clk
0:02:19.6]} 27... Kf6 {[%clk 0:01:50.5]} 28. Re3 {[%clk 0:02:19.5]} 28... Rxe3+
{[%clk 0:01:40.9]} 29. fxe3 {[%clk 0:02:19]} 29... Ke5 {[%clk 0:01:29.9]} 30.
Rf1 {[%clk 0:02:18.6]} 30... Rh8 {[%clk 0:01:23.4]} 31. Kg3 {[%clk 0:02:17.9]}
31... f5 {[%clk 0:01:18.6]} 32. h5 {[%clk 0:02:14.9]} 32... fxg4 {[%clk
0:01:12.7]} 33. hxg6 {[%clk 0:02:13.1]} 33... Rg8 {[%clk 0:01:11.7]} 34. Rf7
{[%clk 0:02:11.8]} 34... b5 {[%clk 0:00:56.6]} 35. g7 {[%clk 0:02:10.7]} 35...
Ke6 {[%clk 0:00:43.3]} 36. Rxa7 {[%clk 0:02:09.5]} 36... Kf6 {[%clk 0:00:39.5]}
37. Kxg4 {[%clk 0:02:09.5]} 37... Re8 {[%clk 0:00:36.1]} 38. Kf3 {[%clk
0:02:06.1]} 38... Ke5 {[%clk 0:00:29.4]} 39. Ke2 {[%clk 0:02:06.2]} 39... c5
{[%clk 0:00:26.7]} 40. Re7+ {[%clk 0:02:04.8]} 40... Rxe7 {[%clk 0:00:23.4]} 41.
g8=Q {[%clk 0:02:05.4]} 41... Re6 {[%clk 0:00:19]} 42. Qb8+ {[%clk 0:02:05.1]}
42... Kf5 {[%clk 0:00:18.9]} 43. Qxb5 {[%clk 0:02:05.5]} 43... Re5 {[%clk
0:00:07.3]} 44. Qxc5 {[%clk 0:02:05.1]} 1-0

[Event "Late-Titled-Tuesday-Blitz-October-24-2023"]
[Site "Chess.com"]
[Date "2023.10.24"]
[Round "3"]
[White "FedaMaster"]
[Black "esskeettit"]
[Result "1-0"]
[WhiteElo "2662"]
[BlackElo "2489"]
[TimeControl "180+1"]
[EndTime "14:28:09 PDT"]
[Termination "FedaMaster won by checkmate"]

1. e4 {[%clk 0:03:00.9]} 1... c5 {[%clk 0:02:58.4]} 2. d4 {[%clk 0:02:59]} 2...
cxd4 {[%clk 0:02:57.9]} 3. c3 {[%clk 0:02:59.2]} 3... dxc3 {[%clk 0:02:58]} 4.
Nxc3 {[%clk 0:02:59.2]} 4... e6 {[%clk 0:02:57]} 5. Nf3 {[%clk 0:03:00.1]} 5...
a6 {[%clk 0:02:56]} 6. Bc4 {[%clk 0:03:00.6]} 6... b5 {[%clk 0:02:55.2]} 7. Bb3
{[%clk 0:03:00.8]} 7... Bb7 {[%clk 0:02:55.2]} 8. O-O {[%clk 0:03:01.4]} 8...
Nc6 {[%clk 0:02:55.4]} 9. Nd5 {[%clk 0:03:01]} 9... Na5 {[%clk 0:02:38.1]} 10.
Bg5 {[%clk 0:02:56.6]} 10... f6 {[%clk 0:02:26.3]} 11. Ne5 {[%clk 0:02:55.5]}
11... exd5 {[%clk 0:01:14.5]} 12. Qh5+ {[%clk 0:02:53.4]} 12... g6 {[%clk
0:01:14.4]} 13. Nxg6 {[%clk 0:02:53.1]} 13... hxg6 {[%clk 0:01:14.5]} 14. Qxg6+
{[%clk 0:02:33.8]} 14... Ke7 {[%clk 0:01:14.4]} 15. Rfe1 {[%clk 0:01:45.8]}
15... Nxb3 {[%clk 0:00:36.1]} 16. exd5+ {[%clk 0:01:45.8]} 16... Kd6 {[%clk
0:00:36]} 17. Bf4+ {[%clk 0:01:44.4]} 17... Kc5 {[%clk 0:00:35.5]} 18. Be3+
{[%clk 0:01:09.6]} 18... Nd4 {[%clk 0:00:15.2]} 19. Bxd4+ {[%clk 0:01:05.1]}
19... Kxd4 {[%clk 0:00:08.6]} 20. Rac1 {[%clk 0:01:05.3]} 20... Kxd5 {[%clk
0:00:03.8]} 21. Qd3# {[%clk 0:01:03.7]} 1-0

[Event "Late-Titled-Tuesday-Blitz-October-24-2023"]
[Site "Chess.com"]
[Date "2023.10.24"]
[Round "3"]
[White "DanylaBagrov"]
[Black "APOKALIPSA13"]
[Result "1-0"]
[WhiteElo "2537"]
[BlackElo "2220"]
[TimeControl "180+1"]
[EndTime "14:28:13 PDT"]
[Termination "DanylaBagrov won by resignation"]

1. d4 {[%clk 0:03:00.9]} 1... e5 {[%clk 0:02:59.4]} 2. dxe5 {[%clk 0:02:56.4]}
2... Nc6 {[%clk 0:02:59.3]} 3. Nf3 {[%clk 0:02:54.6]} 3... Qe7 {[%clk
0:02:59.2]} 4. Bf4 {[%clk 0:02:44.4]} 4... Qb4+ {[%clk 0:02:58.3]} 5. Bd2 {[%clk
0:02:38.2]} 5... Qxb2 {[%clk 0:02:57.8]} 6. Nc3 {[%clk 0:02:38.7]} 6... Bb4
{[%clk 0:02:57.8]} 7. Rb1 {[%clk 0:02:38.7]} 7... Qxc3 {[%clk 0:02:57.4]} 8.
Bxc3 {[%clk 0:02:38.3]} 8... Bxc3+ {[%clk 0:02:58.3]} 9. Nd2 {[%clk 0:02:38.9]}
9... Bxe5 {[%clk 0:02:58.6]} 10. e3 {[%clk 0:02:34.1]} 10... Nf6 {[%clk
0:02:58.2]} 11. Bd3 {[%clk 0:02:34.7]} 11... O-O {[%clk 0:02:57.9]} 12. O-O
{[%clk 0:02:34.2]} 12... d5 {[%clk 0:02:54.7]} 13. c4 {[%clk 0:02:31.5]} 13...
Rd8 {[%clk 0:02:48.8]} 14. Qc2 {[%clk 0:02:25.8]} 14... a5 {[%clk 0:02:36.8]}
15. a3 {[%clk 0:02:23.1]} 15... h6 {[%clk 0:02:25.5]} 16. cxd5 {[%clk
0:02:20.2]} 16... Nxd5 {[%clk 0:02:19.6]} 17. Nc4 {[%clk 0:02:20.6]} 17... Bf6
{[%clk 0:02:17.2]} 18. Be4 {[%clk 0:02:17.9]} 18... Nc3 {[%clk 0:02:15.1]} 19.
Bh7+ {[%clk 0:02:13.4]} 19... Kh8 {[%clk 0:02:04.8]} 20. Rbc1 {[%clk 0:02:02.6]}
20... Be6 {[%clk 0:02:02.5]} 21. Bd3 {[%clk 0:02:00.7]} 21... b5 {[%clk
0:01:51.3]} 22. Nd2 {[%clk 0:01:59.3]} 22... b4 {[%clk 0:01:44.6]} 23. Ne4
{[%clk 0:01:58]} 23... Be5 {[%clk 0:01:30.1]} 24. Nxc3 {[%clk 0:01:54.7]} 24...
Bxc3 {[%clk 0:01:24.6]} 25. Be4 {[%clk 0:01:53.5]} 25... Ra6 {[%clk 0:01:12.9]}
26. Qa4 {[%clk 0:01:49.7]} 26... Bd7 {[%clk 0:00:22.9]} 27. Rfd1 {[%clk
0:01:38.6]} 27... Ne5 {[%clk 0:00:18.8]} 28. axb4 {[%clk 0:01:34.9]} 28... f5
{[%clk 0:00:17.6]} 29. Bxf5 {[%clk 0:01:32.9]} 29... g6 {[%clk 0:00:08.7]} 30.
Bxd7 {[%clk 0:01:32]} 30... Nxd7 {[%clk 0:00:06.7]} 31. Rxc3 {[%clk 0:01:30.1]}
31... Rd6 {[%clk 0:00:06.6]} 32. Rxd6 {[%clk 0:01:29.3]} 1-0